fUSD/lending_fUSD_20251127
["ID","MTS","AMOUNT","RATE_DAILY","PERIOD"]
[394996059,1764283841062,-217.64411062,0.000169,2]
[394996061,1764283841072,-385.14314201,0.000169,2]
[394996063,1764283841081,-3567.30785579,0.000169,2]
[394996065,1764283841090,-600.0,0.00016914,2]
[394996067,1764283841099,-2000.0,0.00016916,2]
[394996069,1764283841108,-150.99,0.00016922,2]
[394996071,1764283841120,-564.02,0.00016922,2]
[394996073,1764283841129,-150.99,0.00016922,2]
[394996075,1764283841138,-3742.05,0.00016922,2]
[394996077,1764283841147,-9999.99,0.00016922,2]
[394996079,1764283841158,-9999.99,0.00016922,2]
[394996081,1764283841167,-6313.55,0.00016922,2]
[394996083,1764283841176,-9999.99,0.00016922,2]
[394996085,1764283841186,-158.56724605,0.00016933,2]
[394996087,1764283841194,-693.0,0.00016959,2]
[394996089,1764283841204,-500.0,0.00016959,2]
[394996091,1764283841213,-525.0,0.00016959,2]
[394996093,1764283841222,-500.0,0.00016959,2]
[394996095,1764283841231,-500.0,0.00016973,2]
[394996097,1764283841240,-500.0,0.00016973,2]
[394996099,1764283841251,-502.89704796,0.00016973,2]
[394996101,1764283841259,-150.34604515,0.00016973,2]
[394996103,1764283841268,-500.01,0.00016973,2]
[394996105,1764283841277,-501.07335338,0.00016973,2]
[394996107,1764283841286,-158.1382381,0.00016973,2]
[394996109,1764283841295,-500.0,0.00016973,2]
[394996111,1764283841307,-599.22714,0.00016973,2]
[394996113,1764283841316,-861.97613206,0.00016987,2]
[394996115,1764283841325,-440.95170807,0.0001699,2]
[394996117,1764283841335,-440.95170807,0.0001699,2]
[394996119,1764283841344,-440.95170807,0.0001699,2]
[394996121,1764283841354,-5832.0050965,0.00016996,2]
[394996123,1764283841363,-11873.1086977,0.00016996,2]
[394996125,1764283841373,-1102.0605351,0.00016997,2]
[394996127,1764283841382,-300.0,0.00016999,2]
[394996129,1764283841391,-300.0,0.00016999,2]
[394996131,1764283841401,-300.0,0.00016999,2]
[394996133,1764283841410,-651.34,0.00016999,2]
[394996135,1764283841419,-651.34,0.00016999,2]
[394996137,1764283841428,-651.34,0.00016999,2]
[394996139,1764283841437,-651.34,0.00016999,2]
[394996142,1764283841448,-651.34,0.00016999,2]
[394996144,1764283841457,-651.34,0.00016999,2]
[394996146,1764283841466,-651.34,0.00016999,2]
[394996148,1764283841475,-651.34,0.00016999,2]
[394996149,1764283841484,-651.34,0.00016999,2]
[394996152,1764283841493,-651.34,0.00016999,2]
[394996154,1764283841503,-651.34,0.00016999,2]
[394996155,1764283841512,-651.34,0.00016999,2]
[394996158,1764283841521,-651.34,0.00016999,2]
[394996160,1764283841530,-651.34,0.00016999,2]
[394996162,1764283841540,-651.34,0.00016999,2]
[394996164,1764283841551,-651.34,0.00016999,2]
[394996166,1764283841565,-651.34,0.00016999,2]
[394996168,1764283841574,-651.34,0.00016999,2]
[394996170,1764283841583,-651.53758192,0.00016999,2]
[394996172,1764283841594,-590356.7410594,0.00017,2]
[394996179,1764283841648,-562.0,0.00016412,2]
[394996181,1764283841657,-1643325.61860794,0.00017,2]
[394996183,1764283841667,-340.13376311,0.00017,2]
[394996185,1764283841676,-151.0,0.00017,2]
[394996187,1764283841686,-375895.04760804,0.00017,2]
[394996190,1764283841705,-23651.49098662,0.00017,2]
[394996192,1764283841714,-4553731.95875058,0.00017,2]
[394996194,1764283841727,-402733.07968143,0.00017,2]
[394996196,1764283841736,-250.0,0.00017,2]
[394996198,1764283841746,-2000.0,0.00017,2]
[394996200,1764283841755,-383.19476822,0.00017,2]
[394996203,1764283841765,-831.0,0.00017,2]
[394996205,1764283841774,-2728.81892,0.00017,2]
[394996207,1764283841783,-151.0,0.00017,2]
[394996209,1764283841792,-151.0,0.00017,2]
[394996211,1764283841801,-155.896795,0.00017,2]
[394996213,1764283841811,-1631.0,0.00017,2]
[394996215,1764283841820,-151.0,0.00017,2]
[394996217,1764283841830,-151.0,0.00017,2]
[394996219,1764283841839,-151.0,0.00017,2]
[394996221,1764283841848,-151.0,0.00017,2]
[394996223,1764283841858,-347.0,0.00017006,2]
[394996225,1764283841867,-166.66,0.00017023,2]
[394996227,1764283841877,-347.0,0.00017032,2]
[394996229,1764283841887,-693.0,0.00017096,2]
[394996231,1764283841897,-500.0,0.00017096,2]
[394996233,1764283841906,-525.0,0.00017096,2]
[394996235,1764283841916,-500.0,0.00017096,2]
[394996237,1764283841925,-2092.314224,0.000171,2]
[394996239,1764283841935,-1000.0,0.000171,2]
[394996241,1764283841945,-210.23873134,0.00017116,2]
[394996243,1764283841955,-347.0,0.0001713,2]
[394996245,1764283841964,-600.0,0.00017188,2]
[394996247,1764283841974,-150.0,0.000172,2]
[394996249,1764283841983,-347.0,0.00017204,2]
[394996251,1764283841993,-347.0,0.00017207,2]
[394996262,1764283842197,-693.0,0.00017233,2]
[394996263,1764283842207,-500.0,0.00017233,2]
[394996264,1764283842218,-525.0,0.00017233,2]
[394996266,1764283842227,-500.0,0.00017233,2]
[394996268,1764283842235,-1450.0,0.00017236,2]
[394996270,1764283842246,-347.0,0.00017237,2]
[394996272,1764283842256,-300.0,0.0001724,2]
[394996273,1764283842265,-2728.81893,0.0001724,2]
[394996275,1764283842275,-350.0,0.000173,2]
[394996277,1764283842284,-970.0,0.000173,2]
[394996279,1764283842294,-150.0,0.00017337,2]
[394996281,1764283842303,-1000.0,0.00017353,2]
[394996283,1764283842313,-693.0,0.0001737,2]
[394996285,1764283842323,-500.0,0.0001737,2]
[394996288,1764283842332,-525.0,0.0001737,2]
[394996289,1764283842342,-500.0,0.0001737,2]
[394996291,1764283842351,-152.0,0.00017374,3]
[394996293,1764283842361,-347.0,0.00017386,2]
[394996295,1764283842370,-347.0,0.00017414,2]
[394996297,1764283842380,-1450.0,0.00017443,2]
[394996299,1764283842389,-600.0,0.00017462,2]
[394996302,1764283842402,-405.42320604,0.00017464,2]
[394996304,1764283842411,-1600.0,0.0001747,2]
[394996306,1764283842420,-283.03885101,0.00017474,2]
[394996308,1764283842429,-1450.0,0.00017504,2]
[394996310,1764283842438,-693.0,0.00017507,2]
[394996312,1764283842447,-500.0,0.00017507,2]
[394996314,1764283842456,-525.0,0.00017507,2]
[394996316,1764283842466,-262.0,0.00017507,2]
[394996318,1764283842475,-202.39,0.0001751,2]
[394996320,1764283842484,-166.66,0.0001752,2]
[394996322,1764283842494,-1000.0,0.00017521,2]
[394996324,1764283842503,-392.08343285,0.00017521,2]
[394996326,1764283842512,-347.0,0.00017538,2]
[394996328,1764283842521,-505.89085187,0.00017581,2]
[394996330,1764283842531,-162.17840105,0.00017589,2]
[394996332,1764283842540,-347.0,0.00017619,2]
[394996334,1764283842549,-693.0,0.00017644,2]
[394996336,1764283842562,-607.36042898,0.00017644,2]
[394996338,1764283842571,-525.0,0.00017644,2]
[394996339,1764283842581,-186.8,0.0001766,2]
[394996341,1764283842591,-248.47,0.00017702,2]
[394996343,1764283842603,-1450.0,0.00017702,2]
[394996345,1764283842613,-288.63,0.0001772,2]
[394996347,1764283842623,-427.91,0.00017734,2]
[394996349,1764283842635,-600.0,0.00017736,2]
[394996351,1764283842645,-2728.81893,0.0001775,2]
[394996354,1764283842655,-693.0,0.00017781,2]
[394996356,1764283842665,-525.0,0.00017781,2]
[394996358,1764283842674,-150.0,0.00017808,2]
[394996360,1764283842683,-1450.0,0.00017824,2]
[394996361,1764283842693,-347.0,0.00017834,2]
[394996363,1764283842702,-347.0,0.00017839,2]
[394996366,1764283842711,-347.0,0.00017854,2]
[394996367,1764283842721,-1450.0,0.00017886,2]
[394996369,1764283842730,-327.92,0.00017894,2]
[394996371,1764283842739,-693.0,0.00017918,2]
[394996373,1764283842748,-525.0,0.00017918,2]
[394996375,1764283842759,-347.0,0.00017923,2]
[394996378,1764283842769,-347.0,0.00017925,2]
[394996380,1764283842778,-174.37311016,0.00017945,2]
[394996382,1764283842790,-300.0,0.00017951,2]
[394996384,1764283842800,-2000.0,0.00017989,2]
[394996386,1764283842810,-2000.0,0.00017989,2]
[394996388,1764283842819,-1000.0,0.00017989,2]
[394996390,1764283842829,-165.63999691,0.00017996,2]
[394996392,1764283842838,-1303.74005521,0.00017999,3]
[394996394,1764283842847,-150.0,0.00017999,2]
[394996396,1764283842856,-300.0,0.00017999,2]
[394996398,1764283842867,-137701.85745824,0.00018,2]
[394996400,1764283842876,-1182.25923108,0.00018,2]
[394996402,1764283842885,-151.00304503,0.00018,2]
[394996404,1764283842894,-151.77891454,0.00018,2]
[394996406,1764283842903,-886.44216076,0.00018,2]
[394996408,1764283842913,-636.2,0.00018,2]
[394996410,1764283842922,-500.0,0.00018,2]
[394996412,1764283842932,-241.63608669,0.00018,2]
[394996414,1764283842942,-427.91,0.00018008,2]
[394996416,1764283842951,-600.0,0.0001801,2]
[394996418,1764283842960,-587.0,0.00018046,2]
[394996420,1764283842969,-693.0,0.00018055,2]
[394996422,1764283842979,-525.0,0.00018055,2]
[394996424,1764283842988,-380.89528583,0.00018068,2]
[394996426,1764283842997,-1000.0,0.00018082,2]
[394996428,1764283843006,-1767.15927976,0.000181,2]
[394996430,1764283843015,-500.0,0.00018105,2]
[394996432,1764283843024,-300.0,0.00018135,2]
[394996434,1764283843034,-327.92,0.00018168,2]
[394996436,1764283843044,-300.0,0.0001817,2]
[394996438,1764283843054,-693.0,0.00018192,2]
[394996440,1764283843064,-525.0,0.00018192,2]
[394996442,1764283843074,-300.0,0.00018197,2]
[394996444,1764283843084,-300.0,0.00018219,2]
[394996446,1764283843093,-300.0,0.00018226,2]
[394996448,1764283843103,-300.0,0.00018229,2]
[394996450,1764283843114,-300.0,0.0001823,2]
[394996452,1764283843124,-2351.0,0.0001823,2]
[394996454,1764283843133,-300.0,0.0001824,2]
[394996456,1764283843143,-2728.81893,0.0001825,2]
[394996458,1764283843152,-300.0,0.00018256,2]
[394996460,1764283843161,-427.91,0.00018282,2]
[394996462,1764283843174,-600.0,0.00018284,2]
[394996464,1764283843183,-247.87530836,0.00018284,2]
[394996466,1764283843193,-248.47,0.00018287,2]
[394996468,1764283843202,-300.0,0.00018293,2]
[394996470,1764283843211,-913.0,0.000183,2]
[394996471,1764283843220,-839.0,0.000183,2]
[394996474,1764283843230,-186.8,0.00018314,2]
[394996475,1764283843239,-693.0,0.00018329,2]
[394996477,1764283843248,-525.0,0.00018329,2]
[394996480,1764283843258,-300.0,0.00018329,2]
[394996481,1764283843267,-300.0,0.00018331,2]
[394996484,1764283843276,-300.0,0.00018335,2]
[394996486,1764283843285,-300.0,0.00018352,2]
[394996487,1764283843295,-300.0,0.00018355,2]
[394996490,1764283843305,-300.0,0.00018356,2]
[394996492,1764283843315,-87879.97,0.00018356,2]
[394996494,1764283843325,-300.0,0.00018382,2]
[394996496,1764283843334,-300.0,0.00018384,2]
[394996498,1764283843343,-300.0,0.00018385,2]
[394996500,1764283843352,-300.0,0.0001839,2]
[394996502,1764283843362,-300.0,0.00018409,2]
[394996503,1764283843371,-300.0,0.00018432,2]
[394996505,1764283843380,-300.0,0.00018433,2]
[394996506,1764283843389,-300.0,0.00018435,2]
[394996508,1764283843398,-300.0,0.00018438,2]
[394996510,1764283843407,-327.92,0.00018442,2]
[394996512,1764283843416,-300.0,0.00018444,2]
[394996514,1764283843425,-300.0,0.00018461,2]
[394996516,1764283843435,-250.0,0.00018462,2]
[394996518,1764283843444,-693.0,0.00018466,2]
[394996520,1764283843454,-525.0,0.00018466,2]
[394996522,1764283843463,-300.0,0.00018476,2]
[394996524,1764283843472,-300.0,0.00018494,2]
[394996526,1764283843481,-300.0,0.00018503,2]
[394996528,1764283843491,-300.0,0.00018504,2]
[394996529,1764283843500,-300.0,0.00018506,2]
[394996531,1764283843509,-288.63,0.00018526,2]
[394996533,1764283843518,-300.0,0.0001853,2]
[394996535,1764283843527,-300.0,0.00018541,2]
[394996537,1764283843536,-427.91,0.00018556,2]
[394996539,1764283843546,-600.0,0.00018558,2]
[394996541,1764283843562,-300.0,0.00018576,2]
[394996543,1764283843571,-300.0,0.00018594,2]
[394996545,1764283843581,-693.0,0.00018603,2]
[394996547,1764283843591,-525.0,0.00018603,2]
[394996549,1764283843601,-300.0,0.00018605,2]
[394996551,1764283843610,-300.0,0.00018614,2]
[394996553,1764283843620,-300.0,0.00018646,2]
[394996555,1764283843629,-300.0,0.00018648,2]
[394996557,1764283843641,-300.0,0.00018666,2]
[394996558,1764283843650,-300.0,0.00018696,2]
[394996560,1764283843659,-5000.000001,0.000187,2]
[394996562,1764283843668,-327.92,0.00018716,2]
[394996564,1764283843679,-300.0,0.00018722,2]
[394996566,1764283843688,-300.0,0.00018734,2]
[394996568,1764283843698,-693.0,0.0001874,2]
[394996570,1764283843707,-525.0,0.0001874,2]
[394996572,1764283843716,-315.11078237,0.00018744,2]
[394996574,1764283843725,-300.0,0.00018746,2]
[394996576,1764283843734,-2728.81893,0.0001875,2]
[394996577,1764283843743,-1000.0,0.0001876,2]
[394996579,1764283843753,-300.0,0.00018776,2]
[394996581,1764283843762,-300.0,0.00018781,2]
[394996583,1764283843772,-150.69,0.000188,2]
[394996585,1764283843783,-150.69,0.000188,2]
[394996587,1764283843792,-150.69,0.000188,2]
[394996589,1764283843802,-150.69,0.000188,2]
[394996591,1764283843812,-150.69,0.000188,2]
[394996593,1764283843821,-150.69,0.000188,2]
[394996595,1764283843831,-150.69,0.000188,2]
[394996597,1764283843840,-150.69,0.000188,2]
[394996599,1764283843849,-150.69,0.000188,2]
[394996601,1764283843859,-150.69,0.000188,2]
[394996603,1764283843868,-150.69,0.000188,2]
[394996605,1764283843878,-150.69,0.000188,2]
[394996607,1764283843887,-150.69,0.000188,2]
[394996609,1764283843897,-150.69,0.000188,2]
[394996611,1764283843906,-150.69,0.000188,2]
[394996612,1764283843915,-150.69,0.000188,2]
[394996614,1764283843925,-150.69,0.000188,2]
[394996616,1764283843934,-150.69,0.000188,2]
[394996618,1764283843943,-150.69,0.000188,2]
[394996620,1764283843954,-150.69,0.000188,2]
[394996622,1764283843963,-150.69,0.000188,2]
[394996624,1764283843972,-150.69,0.000188,2]
[394996626,1764283843981,-150.69,0.000188,2]
[394996628,1764283843990,-150.69,0.000188,2]
[394996630,1764283843999,-150.69,0.000188,2]
[394996632,1764283844008,-150.69,0.000188,2]
[394996634,1764283844017,-150.69,0.000188,2]
[394996636,1764283844026,-150.69,0.000188,2]
[394996637,1764283844035,-150.69,0.000188,2]
[394996639,1764283844044,-150.69,0.000188,2]
[394996641,1764283844054,-150.69,0.000188,2]
[394996643,1764283844064,-150.69,0.000188,2]
[394996645,1764283844074,-150.69,0.000188,2]
[394996647,1764283844083,-150.69,0.000188,2]
[394996649,1764283844093,-150.69,0.000188,2]
[394996651,1764283844103,-150.69,0.000188,2]
[394996653,1764283844112,-150.69,0.000188,2]
[394996655,1764283844122,-150.69,0.000188,2]
[394996657,1764283844131,-150.69,0.000188,2]
[394996659,1764283844141,-150.69,0.000188,2]
[394996661,1764283844150,-150.69,0.000188,2]
[394996663,1764283844160,-150.69,0.000188,2]
[394996665,1764283844171,-150.69,0.000188,2]
[394996667,1764283844180,-150.69,0.000188,2]
[394996668,1764283844190,-150.69,0.000188,2]
[394996670,1764283844199,-150.69,0.000188,2]
[394996672,1764283844209,-150.69,0.000188,2]
[394996674,1764283844219,-150.69,0.000188,2]
[394996676,1764283844228,-150.69,0.000188,2]
[394996678,1764283844238,-150.69,0.000188,2]
[394996680,1764283844247,-150.69,0.000188,2]
[394996682,1764283844256,-150.69,0.000188,2]
[394996684,1764283844266,-150.69,0.000188,2]
[394996686,1764283844275,-150.69,0.000188,2]
[394996688,1764283844285,-300.0,0.00018804,2]
[394996690,1764283844294,-300.0,0.00018813,2]
[394996692,1764283844303,-427.91,0.0001883,2]
[394996694,1764283844312,-600.0,0.00018832,2]
[394996696,1764283844321,-300.0,0.00018842,2]
[394996698,1764283844330,-291.62920076,0.00018867,2]
[394996700,1764283844340,-300.0,0.00018873,2]
[394996703,1764283844359,-300.0,0.00018875,2]
[394996705,1764283844368,-693.0,0.00018877,2]
[394996707,1764283844378,-525.0,0.00018877,2]
[394996709,1764283844388,-300.0,0.00018886,2]
[394996710,1764283844396,-300.0,0.00018925,2]
[394996712,1764283844406,-300.0,0.00018929,2]
[394996714,1764283844415,-165.65,0.00018935,2]
[394996716,1764283844424,-300.0,0.00018938,2]
[394996718,1764283844433,-300.0,0.00018987,2]
[394996720,1764283844443,-327.95,0.0001899,2]
[394996722,1764283844452,-165.65,0.00018997,2]
[394996724,1764283844462,-300.0,0.00018999,2]
[394996726,1764283844471,-5133.98069571,0.00019,2]
[394996728,1764283844480,-88151.89329745,0.00019,2]
[394996730,1764283844491,-64282.11683305,0.00019,2]
[394996734,1764283844690,-236.45129684,0.0001747,2]
[394996735,1764283844700,-191.59738411,0.0001766,2]
[394996736,1764283844710,-391.97827306,0.00019,2]
[394996737,1764283844721,-2052.38503337,0.00019,2]
[394996738,1764283844732,-468.53617814,0.00019,2]
[394996739,1764283844750,-478.87583448,0.00019,2]
[394996835,1764283845865,-507.12454227,0.00019,2]
[394998603,1764283902887,-200.17707136,0.00014769,2]
[394998618,1764284151691,150.0,0.00025,120]
[394998619,1764284374284,960.69,8.307e-05,2]
[394998620,1764284374499,960.69,8.745e-05,2]
[394998621,1764284374696,960.69,9.182e-05,2]
[394998622,1764284374903,960.69,9.619e-05,2]
[394998623,1764284375133,960.69,0.00010056,2]
[394998624,1764284375330,960.69,0.00010494,2]
[394998625,1764284375527,960.69,0.00010931,2]
[394998626,1764284375739,960.69,0.00011368,2]
[394998627,1764284375936,960.69,0.00011805,2]
[394998628,1764284376148,648.81,0.00012242,2]
[394998629,1764284376171,311.88,0.00012242,2]
[394998630,1764284376608,960.69,0.0001268,2]
[394998631,1764284376806,960.69,0.00013117,2]
[394998632,1764284377171,960.69,0.00013554,2]
[394998633,1764284377371,960.69,0.00013991,2]
[394998634,1764284377411,960.69,0.00014429,2]
[394998635,1764284394710,1000.0,0.00013699,2]
[394998646,1764284657037,1097.0,0.00014703,2]
[394998647,1764284661792,1097.0,0.00014703,2]
[394998648,1764284666511,1097.0,0.00014703,2]
[394998649,1764284788000,-436.99604963,0.00014745,3]
[394998650,1764284790743,-250.0,0.00014745,3]
[394998651,1764284793689,-195.0,0.00014745,3]
[394998712,1764285031529,-117.00395037,0.00014745,3]
[394998713,1764285031539,-321.21340641,0.00014772,2]
[394998714,1764285031548,-3428.59,0.00014799,2]
[394998715,1764285031558,-195.0,0.00014818,2]
[394998716,1764285031567,-960.69,0.00014866,2]
[394998717,1764285031576,-150.0,0.00014969,2]
[394998718,1764285031586,-300.0,0.00014969,2]
[394998719,1764285031596,-1200.0,0.00014969,2]
[394998720,1764285031605,-300.0,0.00014969,2]
[394998721,1764285031615,-3612.89676406,0.0001497,2]
[394998722,1764285031634,-6391.50047775,0.0001497,2]
[394998723,1764285031644,-4831.5096,0.0001497,2]
[394998724,1764285031663,-1000.0,0.0001497,2]
[394998725,1764285031672,-34648.9756,0.0001497,2]
[394998726,1764285031682,-182.91592712,0.00015069,2]
[394998727,1764285031694,-549.29907288,0.00015069,2]
[394998728,1764285031703,-93.25683857,0.00015069,2]
[394999514,1764285039720,-406.74316143,0.00015069,2]
[394999516,1764285039730,-600.0,0.0001507,2]
[394999518,1764285039739,-1097.0,0.00015208,2]
[394999520,1764285039748,-500.0,0.0001524,2]
[394999522,1764285039761,-500.0,0.00015269,2]
[394999524,1764285039772,-960.69,0.00015303,2]
[394999526,1764285039781,-500.0,0.00015309,2]
[394999528,1764285039791,-549.83127203,0.00015309,2]
[394999531,1764285039800,-500.0,0.00015309,2]
[394999532,1764285039809,-500.0,0.00015309,2]
[394999535,1764285039819,-500.0,0.00015309,2]
[394999537,1764285039828,-500.0,0.00015309,2]
[394999538,1764285039838,-500.0,0.00015309,2]
[394999541,1764285039847,-500.0,0.00015309,2]
[394999543,1764285039856,-500.0,0.00015309,2]
[394999544,1764285039866,-150.99,0.0001531,2]
[394999547,1764285039876,-150.99,0.0001531,2]
[394999549,1764285039886,-6313.55,0.0001531,2]
[394999551,1764285039895,-9999.99,0.0001531,2]
[394999553,1764285039904,-9999.99,0.0001531,2]
[394999555,1764285039914,-564.02,0.0001531,2]
[394999557,1764285039924,-3742.05,0.0001531,2]
[394999559,1764285039933,-9999.99,0.0001531,2]
[394999561,1764285039943,-600.0,0.00015344,2]
[394999563,1764285039951,-600.0,0.00015618,2]
[394999565,1764285039964,-166.66,0.00015632,2]
[394999567,1764285039973,-166.66,0.00015697,2]
[394999569,1764285039982,-960.69,0.0001574,2]
[394999571,1764285039993,-1000.0,0.00015788,2]
[394999573,1764285040002,-600.0,0.00015892,2]
[394999575,1764285040012,-1097.0,0.00016009,2]
[394999577,1764285040021,-166.66,0.00016028,2]
[394999579,1764285040030,-160.0,0.00016092,2]
[394999581,1764285040040,-166.66,0.00016148,2]
[394999583,1764285040049,-600.0,0.00016166,2]
[394999585,1764285040058,-960.69,0.00016178,2]
[394999587,1764285040068,-427.01065334,0.00016183,2]
[394999589,1764285040077,-195.0,0.0001622,2]
[394999591,1764285040086,-250.0,0.0001622,2]
[394999593,1764285040095,-195.0,0.0001622,2]
[394999595,1764285040105,-250.0,0.0001622,2]
[394999597,1764285040114,-195.0,0.00016279,2]
[394999599,1764285040125,-1193.0,0.00016283,2]
[394999601,1764285040136,-909.0,0.00016283,2]
[394999603,1764285040145,-6503.0,0.00016283,2]
[394999605,1764285040157,-275.584,0.00016283,2]
[394999607,1764285040166,-310.986,0.00016283,2]
[394999609,1764285040175,-2717.0,0.00016283,2]
[394999611,1764285040185,-1500.0,0.00016336,2]
[394999613,1764285040195,-166.66,0.00016358,2]
[394999615,1764285040205,-420.0,0.00016383,2]
[394999617,1764285040216,-420.0,0.00016383,2]
[394999620,1764285040226,-500.0,0.00016438,2]
[394999622,1764285040235,-500.0,0.00016438,2]
[394999624,1764285040245,-500.0,0.00016438,2]
[394999626,1764285040254,-528.4392115,0.00016438,2]
[394999628,1764285040263,-651.34,0.00016438,2]
[394999630,1764285040272,-651.34,0.00016438,2]
[394999632,1764285040281,-651.34,0.00016438,2]
[394999634,1764285040291,-1680.0,0.00016466,2]
[394999636,1764285040301,-1000.0,0.00016496,2]
[394999638,1764285040310,-150.0,0.00016612,2]
[394999640,1764285040320,-150.0,0.00016612,2]
[394999642,1764285040329,-150.0,0.00016612,2]
[394999644,1764285040338,-247.503,0.00016612,2]
[394999646,1764285040348,-150.0,0.00016612,2]
[394999648,1764285040360,-250.0,0.00016612,2]
[394999650,1764285040371,-150.0,0.00016612,2]
[394999652,1764285040381,-250.0,0.00016612,2]
[394999654,1764285040390,-223.225,0.00016612,2]
[394999656,1764285040400,-163.0,0.00016612,2]
[394999658,1764285040409,-610.987,0.00016612,2]
[394999660,1764285040420,-1602.0,0.00016612,2]
[394999662,1764285040429,-1321.0,0.00016612,2]
[394999664,1764285040439,-3439.0,0.00016612,2]
[394999666,1764285040449,-1257.0,0.00016612,2]
[394999668,1764285040458,-833.0,0.00016612,2]
[394999670,1764285040468,-702.277,0.00016612,2]
[394999672,1764285040477,-798.74,0.00016612,2]
[394999674,1764285040486,-960.69,0.00016615,2]
[394999676,1764285040496,-166.66,0.00016664,2]
[394999678,1764285040505,-166.66,0.00016689,2]
[394999680,1764285040515,-200.0,0.00016824,2]
[394999682,1764285040524,-384.0,0.00016833,2]
[394999684,1764285040534,-1097.0,0.00016852,2]
[394999686,1764285040543,-1599.52136738,0.00016884,2]
[394999688,1764285040555,-798.74,0.00016886,2]
[394999690,1764285040565,-384.0,0.00016915,2]
[394999692,1764285040574,-284.0,0.00016923,2]
[394999694,1764285040584,-384.0,0.00016936,2]
[394999696,1764285040593,-384.0,0.00016971,2]
[394999698,1764285040602,-501.07335338,0.00016973,2]
[394999700,1764285040612,-651.34,0.00016999,2]
[394999702,1764285040621,-514.5784816,0.00016999,2]
[394999704,1764285040631,-127441.94538052,0.00017,2]
[394999706,1764285040641,-250.0,0.00017,2]
[394999708,1764285040651,-384.0,0.00017007,2]
[394999710,1764285040660,-166.66,0.00017019,2]
[394999712,1764285040670,-500.01,0.00017073,2]
[394999714,1764285040679,-158.1382381,0.00017073,2]
[394999716,1764285040689,-599.22714,0.00017073,2]
[394999718,1764285040698,-500.0,0.00017073,2]
[394999720,1764285040707,-163.86,0.0001709,2]
[394999722,1764285040716,-651.34,0.00017099,2]
[394999724,1764285040725,-200000.0,0.000171,2]
[394999726,1764285040735,-384.0,0.00017128,2]
[394999728,1764285040744,-798.74,0.0001716,2]
[394999730,1764285040753,-158.56724605,0.00017164,2]
[394999732,1764285040763,-166.66,0.00017181,2]
[394999734,1764285040772,-384.0,0.00017196,2]
[394999736,1764285040781,-651.34,0.00017199,2]
[394999738,1764285040790,-200000.0,0.000172,2]
[394999740,1764285040800,-384.0,0.00017215,2]
[394999742,1764285040809,-217.64411064,0.0001725,2]
[394999744,1764285040819,-384.0,0.00017293,2]
[394999746,1764285040828,-10004.3972418,0.00017296,2]
[394999748,1764285040839,-2000.0,0.000173,2]
[394999750,1764285040848,-200000.0,0.000173,2]